bitfinex-derivatives/quotes_ETHF0:USTF0_20250316
["timestamp","ask_amount","ask_price","bid_price","bid_amount"]
[1742091594265,5.68747924,1921.3,1921.2,1.04099]
[1742091595067,4.6118,1921.3,1921.2,1.04099]
[1742091595361,4.6118,1921.3,1921.2,3.09369]
[1742091597063,5.3076,1921.3,1921.2,3.09369]
[1742091597265,4.6118,1921.3,1921.2,3.09369]
[1742091597559,3.2078,1921.3,1921.2,3.09369]
[1742091598760,4.6544,1921.3,1921.2,3.09369]
[1742091599266,3.2078,1921.3,1921.2,3.09369]
[1742091600965,0.0078184,1921.4,1921.2,7.7605]
[1742091601267,1.07567924,1921.7,1921.6,1.04077]
[1742091601460,0.6943,1921.8,1921.7,1.04072]
[1742091602167,1.73497,1921.8,1921.7,1.04072]
[1742091602363,0.6943,1921.8,1921.7,1.04072]
[1742091602666,1.735,1921.8,1921.6,2.37165]
[1742091602870,0.6972,1921.7,1921.6,2.37165]
[1742091604764,0.6943,1921.8,1921.7,1.04072]
[1742091604964,0.6943,1921.8,1921.7,2.40852]
[1742091605966,1.73497,1921.8,1921.7,1.3678]
[1742091606161,1.04077,1921.6,1921.5,1.04081]
[1742091606366,1.04076,1921.7,1921.6,1.04077]
[1742091607171,1.735,1921.8,1921.6,1.04077]
[1742091607372,1.04072,1921.7,1921.6,1.04077]
[1742091607974,0.6943,1921.8,1921.4,3.2078]
[1742091608281,1.04091,1921.4,1921.3,1.04089]
[1742091608776,2.44771,1921.4,1921.3,1.04089]
[1742091609473,1.04094,1921.3,1921.2,1.3478]
[1742091609673,1.4068,1921.4,1921.2,1.04097]
[1742091609871,1.04096,1921.3,1921.2,1.04097]
[1742091610171,1.4068,1921.4,1921.1,1.3277184]
[1742091610377,1.04094,1921.3,1921.2,1.04095]
[1742091610569,3.2078,1921.5,1921.4,1.04088]
[1742091610570,4.2806001,1921.5,1921.4,1.04088]
[1742091611075,4.9436001,1921.5,1921.4,1.04088]
[1742091611276,3.8708,1921.5,1921.4,2.36078]
[1742091613470,4.91163,1921.5,1921.4,2.36078]
[1742091613874,3.8708,1921.5,1921.4,1.04088]
[1742091614773,5.1906,1921.5,1921.1,0.0078184]
[1742091615076,1.04099,1921.2,1921.1,0.0078184]
[1742091615479,3.83539,1921.2,1921.1,0.0078184]
[1742091615681,2.7944,1921.2,1921.1,1.0488584]
[1742091615974,2.0898,1921.2,1921.1,1.0488584]
[1742091616174,1.07368734,1921.4,1921.1,0.0078184]
[1742091616372,1.4235,1921.4,1921.3,1.04094]
[1742091616971,1.4235,1921.4,1921.3,2.49014]
[1742091618278,5.93820951,1921.6,1921.5,1.04083]
[1742091618480,4.98418893,1921.6,1921.5,1.04083]
[1742091618977,1.04083,1921.5,1921.1,0.6762184]
[1742091619173,1.75218,1921.4,1921.1,1.3837184]
[1742091619377,3.9191,1921.4,1921.3,1.04094]
[1742091620074,5.2408,1921.4,1921.3,1.04094]
[1742091620274,6.28168,1921.4,1921.3,1.04094]
[1742091620982,6.28168,1921.4,1921.2,2.48875]
[1742091621285,1.3217,1921.3,1921.2,2.48875]
[1742091621475,1.3217,1921.3,1921.2,1.04095]
[1742091622083,5.94661845,1921.6,1921.5,1.04083]
[1742091622687,3.2078,1921.6,1921.5,1.04083]
[1742091622879,4.87112952,1921.6,1921.5,1.04083]
[1742091623183,4.5737,1921.6,1921.5,1.04083]
[1742091623371,4.5737,1921.6,1921.5,1.75073]
[1742091623777,1.3659,1921.6,1921.5,1.75073]
[1742091628191,2.43278893,1921.8,1921.7,1.04072]
[1742091628489,2.39208893,1921.8,1921.7,1.04072]
[1742091628677,1.3166,1921.8,1921.7,1.04072]
[1742091628877,3.2156184,1921.9,1921.8,1.04067]
[1742091630290,0.0078184,1921.9,1921.8,1.04067]
[1742091630586,0.0078184,1921.9,1921.8,4.45567]
[1742091631482,0.0078184,1921.9,1921.8,1.04067]
[1742091631790,1.7581284,1921.9,1921.8,1.04067]
[1742091631990,2.1374184,1921.9,1921.8,1.04067]
[1742091632387,2.1374184,1921.9,1921.7,3.8907]
[1742091632388,1.04067,1921.8,1921.7,4.93139]
[1742091632589,1.04072,1921.7,1921.6,1.04073]
[1742091632892,1.04077,1921.6,1921.5,1.04081]
[1742091633092,1.04077,1921.6,1921.2,6.01746]
[1742091633093,1.04083,1921.5,1921.4,1.04084]
[1742091633288,1.04092,1921.4,1921.2,1.04096]
[1742091633484,1.4199,1921.3,1921.2,1.04096]
[1742091633789,2.8039,1921.3,1921.2,1.04096]
[1742091634785,2.8039,1921.3,1921.2,2.46176]
[1742091635187,3.84484,1921.3,1921.2,1.4208]
[1742091635889,2.8039,1921.3,1921.2,2.46179]
[1742091636096,3.84484,1921.3,1921.2,2.46179]
[1742091636393,2.8039,1921.3,1921.2,2.46179]
[1742091636589,3.84484,1921.3,1921.2,2.46179]
[1742091636794,2.8039,1921.3,1921.2,2.46179]
[1742091637097,1.4199,1921.3,1921.2,2.46179]
[1742091637288,2.74127189,1921.5,1921.4,1.04088]
[1742091637592,3.49341893,1921.5,1921.4,1.04088]
[1742091637794,1.3771,1921.5,1921.4,1.04088]
[1742091637993,2.41793,1921.5,1921.4,1.04088]
[1742091638193,1.3771,1921.5,1921.4,1.04088]
[1742091638596,2.41793,1921.5,1921.4,1.04088]
[1742091639094,1.04097,1921.3,1921.1,1.7492084]
[1742091639295,1.04097,1921.3,1921.1,3.0826084]
[1742091639495,2.7653,1921.2,1921.1,3.0826084]
[1742091639894,3.80629,1921.2,1921.1,3.0826584]
[1742091640095,3.80629,1921.2,1921.1,0.0078184]
[1742091641099,1.0411,1921.0,1920.8,4.24897]
[1742091641290,1.74395,1920.9,1920.8,5.68077]
[1742091641491,3.15555,1920.9,1920.8,5.68077]
[1742091641892,2.1144,1920.9,1920.8,4.6396]
[1742091642198,1.04128,1920.7,1920.4,8.70707252]
[1742091642390,3.2078,1921.0,1920.5,1.04135]
[1742091642391,1.74412,1920.6,1920.5,1.04135]
[1742091643102,1.04137,1920.5,1920.4,1.4396184]
[1742091643399,2.40147,1920.5,1920.4,0.0078184]
[1742091643590,1.04153,1920.3,1920.1,1.04157]
[1742091643795,1.04148,1920.3,1920.1,1.04157]
[1742091644102,2.0189,1920.2,1920.1,1.04157]
[1742091644298,3.06043,1920.2,1920.0,2.3649]
[1742091644498,1.3601,1920.1,1920.0,2.3649]
[1742091651594,0.7153,1920.4,1920.3,1.04148]
[1742091651793,2.7023,1920.4,1920.3,1.04148]
[1742091652594,2.0255,1920.4,1920.3,1.04148]
[1742091653092,3.06692,1920.4,1920.3,1.04148]
[1742091653300,2.0255,1920.4,1920.3,1.04148]
[1742091656404,1.3102,1920.4,1920.3,1.04148]
[1742091656804,3.2078,1920.5,1920.4,1.04142]
[1742091657009,4.6153,1920.5,1920.4,2.49192]
[1742091657807,5.65667,1920.5,1920.4,2.49192]
[1742091657994,4.6153,1920.5,1920.4,2.49192]
[1742091659006,1.4075,1920.5,1920.4,2.49192]
[1742091659309,4.2569184,1920.7,1920.6,1.04132]
[1742091659807,1.0491184,1920.7,1920.6,1.04132]
[1742091660502,0.0078184,1920.7,1920.6,1.04132]
[1742091660708,1.04132,1920.6,1920.5,2.44714]
[1742091660908,1.04132,1920.6,1920.5,2.44713]
[1742091661608,1.04132,1920.6,1920.5,1.4058]
[1742091661802,1.04132,1920.6,1920.4,0.6941]
[1742091661803,1.04137,1920.5,1920.4,0.6941]
[1742091661999,1.04142,1920.4,1920.3,4.6561]
[1742091662206,3.2078,1920.4,1920.1,1.04155]
[1742091662407,0.7055,1920.3,1920.0,1.4483]
[1742091662605,1.04155,1920.2,1920.1,1.04156]
[1742091663215,0.7055,1920.3,1920.0,2.48991]
[1742091663411,0.6904,1920.1,1920.0,2.48994]
[1742091664110,0.6904,1920.1,1919.9,1.7397884]
[1742091664304,0.6904,1920.1,1920.0,1.04164]
[1742091664505,1.73199,1920.1,1920.0,2.46834]
[1742091665002,0.6904,1920.1,1920.0,2.46834]
[1742091665203,1.73199,1920.1,1920.0,2.46834]
[1742091665604,1.73199,1920.1,1920.0,1.4267]
[1742091665796,1.73199,1920.1,1920.0,2.46834]
[1742091666205,0.6904,1920.1,1920.0,1.4267]
[1742091666503,1.73199,1920.1,1920.0,2.46834]
[1742091666708,0.6904,1920.1,1920.0,2.46834]
[1742091667409,1.73199,1920.1,1920.0,1.4267]
[1742091667594,1.04164,1920.0,1919.9,0.0078184]
[1742091667802,1.71654,1920.0,1919.9,0.0078184]
[1742091668001,1.71654,1920.0,1919.9,1.0495184]
[1742091668203,1.71654,1920.0,1919.9,0.0078184]
[1742091668506,1.71654,1920.0,1919.9,1.0495184]
[1742091668805,0.6749,1920.0,1919.9,2.4379184]
[1742091669205,1.71654,1920.0,1919.9,2.4379184]
[1742091669708,0.6749,1920.0,1919.9,2.4379184]
[1742091670602,4.93979,1920.1,1920.0,1.04164]
[1742091670805,4.93979,1920.1,1920.0,2.40854]
[1742091671202,3.8982,1920.1,1919.9,0.0078184]
[1742091671397,1.04164,1920.0,1919.9,0.0078184]
[1742091671800,9.31310037,1920.1,1920.0,1.04164]
[1742091672009,7.3152,1920.1,1920.0,2.40854]
[1742091672213,8.39230753,1920.1,1920.0,2.40854]
[1742091672409,4.28490753,1920.1,1920.0,2.40854]
[1742091672613,4.28490753,1920.1,1920.0,3.83734]
[1742091672808,3.2078,1920.4,1920.2,2.60383]
[1742091673004,3.2078,1920.4,1920.3,2.40838]
[1742091673405,1.07710753,1920.5,1920.4,1.04142]
[1742091673613,1.0491184,1920.7,1920.5,1.04132]
[1742091673808,0.96675047,1920.7,1920.6,2.41442]
[1742091674008,0.0078184,1920.7,1920.6,2.41442]
[1742091675514,4.28490753,1921.0,1920.9,1.04115]
[1742091675922,3.2078,1921.0,1920.9,1.04115]
[1742091676917,4.6147,1921.0,1920.9,1.04115]
[1742091677812,1.4069,1921.0,1920.9,2.44305]
[1742091678210,1.4069,1921.0,1920.9,1.4019]
[1742091678411,1.4069,1921.0,1920.9,2.44305]
[1742091680421,2.448,1921.0,1920.9,1.4019]
[1742091680614,1.04115,1920.9,1920.8,1.72909]
[1742091680811,2.42125,1920.9,1920.8,1.72909]
[1742091681019,1.3801,1920.9,1920.8,1.72909]
[1742091681325,1.3801,1920.9,1920.7,1.04122]
[1742091681619,2.4213,1920.9,1920.7,1.04122]
[1742091681820,1.3801,1920.9,1920.6,2.41629]
[1742091682020,1.04126,1920.7,1920.6,1.375]
[1742091682216,1.04126,1920.7,1920.6,2.41632]
[1742091682417,1.3214,1920.7,1920.6,2.41632]
[1742091685229,2.36266,1920.7,1920.6,2.41632]
[1742091685430,1.3214,1920.7,1920.6,2.41632]
[1742091687325,4.5954,1920.8,1920.7,1.04126]
[1742091687521,4.5954,1920.8,1920.7,2.48136]
[1742091688725,1.04126,1920.7,1920.5,0.7171]
[1742091688937,1.04132,1920.6,1920.5,1.75844]
[1742091689632,1.3293,1920.7,1920.6,1.04132]
[1742091690035,1.04132,1920.6,1920.5,1.75843]
[1742091690230,2.3706,1920.7,1920.6,1.04132]
[1742091691531,1.3293,1920.7,1920.6,2.41852]
[1742091692236,2.37056,1920.7,1920.6,1.3772]
[1742091692830,2.37056,1920.7,1920.6,2.41852]
[1742091693532,1.3293,1920.7,1920.6,2.41852]
[1742091693735,3.2078,1920.8,1920.7,1.04126]
[1742091693935,4.522,1920.8,1920.7,2.41846]
[1742091694138,3.2078,1920.8,1920.7,2.41846]
[1742091694331,1.07700037,1920.9,1920.8,1.04121]
[1742091694528,1.07700037,1920.9,1920.8,3.16181]
[1742091695434,1.07700037,1920.9,1920.8,6.57781]
[1742091696432,1.3506184,1921.1,1921.0,1.0411]
[1742091697040,1.3506184,1921.1,1921.0,2.4672]
[1742091698840,2.3916584,1921.1,1921.0,2.4672]
[1742091699039,1.3506184,1921.1,1921.0,2.4672]
[1742091700837,0.0078184,1921.1,1921.0,2.4672]
[1742091701435,1.3128,1921.4,1921.3,1.04094]
[1742091701632,1.07750747,1921.5,1921.4,1.04088]
[1742091701837,5.197,1921.6,1921.5,1.04083]
[1742091702040,0.6764,1921.6,1921.5,1.04083]
[1742091702343,1.71717,1921.6,1921.4,1.04084]
[1742091702540,1.71717,1921.6,1921.4,1.3871184]
[1742091702742,1.71717,1921.6,1921.5,1.04083]
[1742091703343,1.71717,1921.6,1921.4,1.3871184]
[1742091703740,1.71717,1921.6,1921.5,1.04083]
[1742091704044,0.6764,1921.6,1921.5,1.04083]
[1742091704341,1.71717,1921.6,1921.4,2.4279584]
[1742091704537,1.71717,1921.6,1921.5,1.04083]
[1742091705345,0.6764,1921.6,1921.5,1.04083]
[1742091706037,1.71717,1921.6,1921.5,1.04083]
[1742091706438,1.04083,1921.5,1921.4,2.4279484]
[1742091706645,0.0078184,1921.7,1921.6,1.04077]
[1742091707739,0.0078184,1921.7,1921.6,1.70587]
[1742091716366,0.0078184,1921.7,1921.6,1.04077]
[1742091716559,2.4249384,1921.7,1921.6,1.04077]
[1742091716759,1.04077,1921.6,1921.5,2.46728]
[1742091716960,2.41717,1921.6,1921.5,2.46728]
[1742091717160,1.04083,1921.5,1921.4,4.2564584]
[1742091717362,3.81863,1921.5,1921.4,0.0078184]
[1742091718263,3.81863,1921.5,1921.4,1.0486984]
[1742091718666,3.81863,1921.5,1921.4,0.0078184]
[1742091718869,3.81863,1921.5,1921.4,1.0486984]
[1742091719060,3.81863,1921.5,1921.4,0.0078184]
[1742091719365,4.89583107,1921.5,1921.4,0.0078184]
[1742091721059,6.56294907,1921.5,1921.4,0.0078184]
[1742091721275,1.04104,1921.1,1921.0,1.70836]
[1742091721566,1.04104,1921.1,1921.0,1.04106]
[1742091721770,1.04103,1921.2,1921.1,1.04104]
[1742091721967,2.43793,1921.2,1921.0,2.44936]
[1742091722372,1.3969,1921.1,1921.0,2.44936]
[1742091722569,5.95307956,1921.3,1921.0,1.4083]
[1742091722570,4.28500107,1921.3,1921.0,1.4083]
[1742091722767,4.28500107,1921.3,1921.2,1.04099]
[1742091722963,1.0409,1921.4,1921.3,1.04094]
[1742091723264,1.0409,1921.4,1921.2,1.04095]
[1742091723463,1.04094,1921.3,1921.2,1.04095]
[1742091724068,2.43784,1921.3,1921.2,1.04095]
[1742091725270,1.04099,1921.2,1921.1,1.041]
[1742091725474,2.48069,1921.2,1921.1,1.041]
[1742091725973,1.4397,1921.2,1921.1,1.041]
[1742091732570,2.48069,1921.2,1921.1,1.041]
[1742091732779,1.4397,1921.2,1921.1,1.041]
[1742091733171,2.48069,1921.2,1921.1,1.041]
[1742091733364,1.4397,1921.2,1921.0,2.44936]
[1742091733570,2.36974,1921.1,1921.0,2.44936]
[1742091734468,1.0411,1921.0,1920.9,0.7317184]
[1742091734764,2.4778,1921.0,1920.9,1.3869184]
[1742091735477,2.4778,1921.0,1920.9,2.4280684]
[1742091736574,2.4778,1921.0,1920.9,1.3869184]
[1742091736875,2.4778,1921.0,1920.9,0.0078184]
[1742091739781,1.07720107,1921.1,1921.0,1.0411]
[1742091739982,1.07720107,1921.1,1921.0,1.7044]
[1742091740280,1.04101,1921.2,1921.1,1.04104]
[1742091740484,2.47761,1921.2,1921.1,2.35024]
[1742091740874,2.47761,1921.2,1921.1,1.3092]
[1742091741074,2.47759,1921.2,1921.1,1.3092]
[1742091741273,1.0411,1921.0,1920.9,3.4228184]
[1742091741479,1.0411,1921.0,1920.9,1.3170184]
[1742091741682,1.0411,1921.0,1920.9,0.0078184]
[1742091741978,3.1389,1921.0,1920.9,0.0078184]
[1742091742581,3.1389,1921.0,1920.9,1.3170184]
[1742091744077,3.1389,1921.0,1920.9,0.0078184]
[1742091745080,6.3467,1921.0,1920.9,0.0078184]
[1742091745275,1.04126,1920.7,1920.6,0.682]
[1742091745480,1.04125,1920.8,1920.6,1.72327]
[1742091745681,3.07676,1920.7,1920.6,3.06697]
[1742091745888,3.07676,1920.7,1920.6,1.72327]
[1742091746990,2.0355,1920.7,1920.6,1.72327]
[1742091747193,1.3445,1920.7,1920.6,1.72327]
[1742091747890,2.38576,1920.7,1920.6,1.72327]
[1742091748089,1.3445,1920.7,1920.6,1.72327]
[1742091748286,2.38576,1920.7,1920.6,1.72327]
[1742091749991,1.3445,1920.7,1920.6,1.72327]
[1742091750396,2.38576,1920.7,1920.6,1.72327]
[1742091750992,1.3445,1920.7,1920.6,1.72327]
[1742091751191,2.38576,1920.7,1920.6,1.72327]
[1742091757195,1.3445,1920.7,1920.6,1.72327]
[1742091757600,2.38576,1920.7,1920.6,1.72327]
[1742091758600,1.04132,1920.6,1920.5,1.7292584]
[1742091758796,2.36382,1920.6,1920.5,1.7292584]
[1742091761005,1.3225,1920.6,1920.5,1.7292584]
[1742091762406,1.07720107,1920.9,1920.8,1.04121]
[1742091762905,3.2078,1921.0,1920.9,1.04115]
[1742091764006,4.5276,1921.0,1920.9,1.04115]
[1742091765700,4.5276,1921.0,1920.9,1.76225]
[1742091769606,3.2078,1921.0,1920.9,1.76225]
[1742091771010,3.2078,1921.0,1920.9,3.15235]
[1742091771305,1.07720107,1921.3,1921.2,1.04099]
[1742091772013,0.3378044,1921.3,1921.2,2.43109]
[1742091772508,3.2078,1921.5,1921.4,1.04088]
[1742091773205,4.24863,1921.5,1921.4,1.3901]
[1742091773407,4.24863,1921.5,1921.2,1.04094]
[1742091773408,1.04088,1921.4,1921.2,1.04094]
[1742091773709,3.13908,1921.4,1921.3,1.04094]
[1742091773900,3.13908,1921.4,1921.2,2.37725]
[1742091774101,1.4348,1921.3,1921.2,2.37725]
[1742091776714,2.47574,1921.3,1921.1,0.6673]
[1742091776917,0.6644,1921.2,1921.1,3.01874]
[1742091777116,2.1061,1921.2,1921.1,3.01874]
[1742091778106,1.4417,1921.2,1921.1,3.01874]
[1742091779318,3.2078,1921.6,1921.5,1.04083]
[1742091779523,4.6495,1921.6,1921.5,1.04083]
[1742091780011,4.6495,1921.6,1921.3,1.4261]
[1742091780012,5.69027,1921.6,1921.4,1.04084]
[1742091780216,1.3889,1921.5,1921.4,2.40064]
[1742091780517,1.0409,1921.4,1921.2,1.04095]
[1742091780817,2.1113,1921.3,1921.2,1.04095]
[1742091781608,2.1113,1921.3,1921.1,6.6218]
[1742091781609,2.1113,1921.3,1921.1,7.66283]
[1742091781809,2.42989,1921.2,1921.1,3.2078]
[1742091782918,1.3889,1921.2,1920.9,3.2078]
[1742091783119,1.04112,1921.0,1920.8,1.04119]
[1742091783315,1.3972,1920.9,1920.8,1.04119]
[1742091786122,2.43837,1920.9,1920.7,1.4298]
[1742091786321,0.7166,1920.8,1920.7,2.47102]
[1742091786519,1.04117,1920.9,1920.7,2.47102]
[1742091786732,1.06045755,1921.2,1921.1,1.04104]
[1742091786920,2.45535755,1921.2,1921.1,1.04104]
[1742091787116,1.3949,1921.2,1921.1,1.04104]
[1742091793726,2.0673,1921.2,1921.1,1.04104]
[1742091793921,3.10832,1921.2,1921.0,1.04106]
[1742091794127,2.37684,1921.1,1920.9,1.04111]
[1742091794330,1.3358,1921.0,1920.9,1.04111]
[1742091794533,2.0493,1921.0,1920.9,1.04111]
[1742091795627,3.0904,1921.0,1920.9,1.04111]
[1742091796133,2.0493,1921.0,1920.9,1.04111]
[1742091797321,1.3358,1921.0,1920.9,1.04111]
[1742091797529,1.3358,1921.0,1920.9,1.75661]
[1742091798233,3.2078,1921.1,1921.0,1.0411]
[1742091798426,3.2078,1921.1,1921.0,2.3507]
[1742091801135,4.6448,1921.1,1921.0,2.3507]
[1742091801530,1.437,1921.1,1921.0,2.3507]
[1742091803343,1.437,1921.1,1921.0,1.0411]
[1742091804142,1.437,1921.1,1921.0,2.4139]
[1742091805245,5.22604545,1921.4,1921.3,1.04094]
[1742091805537,4.26825755,1921.4,1921.3,1.04094]
[1742091805938,3.2078,1921.4,1921.3,1.04094]
[1742091806141,3.2078,1921.4,1921.3,2.42354]
[1742091809343,1.3505,1921.5,1921.4,1.04088]
[1742091809551,1.3505,1921.5,1921.4,2.47878]
[1742091810044,1.06827595,1921.7,1921.6,1.04077]
[1742091810246,1.75747595,1921.7,1921.6,1.04077]
[1742091810443,0.6970184,1921.7,1921.6,1.04077]
[1742091810642,0.6970184,1921.7,1921.2,2.60243]
[1742091810643,1.04078,1921.6,1921.2,0.7114]
[1742091810944,1.04083,1921.5,1921.2,0.7114]
[1742091811248,0.7048,1921.4,1921.3,1.04092]
[1742091811542,2.7764,1921.4,1921.1,3.2078]
[1742091811731,2.7764,1921.4,1921.0,1.367]
[1742091811934,2.7764,1921.4,1921.2,1.04097]
[1742091811935,1.3824,1921.3,1921.2,1.04097]
[1742091813046,1.3824,1921.3,1921.2,2.40797]
[1742091813245,1.06045755,1921.5,1921.4,1.04088]
[1742091813540,2.2894879,1921.6,1921.5,1.04083]
[1742091813735,1.3317,1921.6,1921.5,1.04083]
[1742091814538,1.3317,1921.6,1921.1,6.72867]
[1742091814539,1.04083,1921.5,1921.1,6.72867]
[1742091814743,1.4262,1921.4,1921.3,1.04089]
[1742091815044,2.46708,1921.4,1921.3,1.04089]
[1742091815245,1.4262,1921.4,1921.3,1.04089]
[1742091817939,3.2078,1921.5,1921.4,1.04088]
[1742091818138,4.5993,1921.5,1921.4,1.04088]
[1742091818745,4.5993,1921.5,1921.4,1.71408]
[1742091819138,3.2078,1921.5,1921.4,1.71408]
[1742091819745,1.73937595,1921.7,1921.6,1.04077]
[1742091819937,1.06827595,1921.7,1921.6,1.04077]
[1742091820341,1.06827595,1921.7,1921.6,2.44637]
[1742091821748,0.0078184,1921.7,1921.6,2.44637]
[1742091849265,0.0078184,1921.7,1921.6,5.65417]
[1742091852679,0.0078184,1921.7,1921.6,2.44637]
[1742091854569,0.0078184,1921.7,1921.6,5.65417]
[1742091855173,1.06045755,1922.2,1922.1,1.0405]
[1742091855174,0.95940041,1922.2,1922.1,1.0405]
[1742091855374,3.49545755,1922.5,1922.3,1.04035]
[1742091855871,2.45515755,1922.5,1922.4,1.04034]
[1742091856071,1.3947,1922.5,1922.4,1.04034]
[1742091856573,2.7131,1922.5,1922.4,1.04034]
[1742091861285,1.3184,1922.5,1922.4,1.04034]
[1742091861774,0.0078184,1922.6,1922.5,1.04029]
[1742091861966,1.4169184,1922.6,1922.5,1.04029]
[1742091862870,1.4169184,1922.6,1922.5,2.35509]
[1742091866881,1.4169184,1922.6,1922.5,1.04029]
[1742091868875,1.04029,1922.5,1922.3,0.0078184]
[1742091869076,1.3802,1922.4,1922.3,2.4213084]
[1742091869285,1.3802,1922.4,1922.3,1.0482084]
[1742091870589,2.42054,1922.4,1922.3,1.0482084]
[1742091870779,2.42054,1922.4,1922.3,0.0078184]
[1742091871082,9.89213,1922.4,1921.9,1.04058]
[1742091871287,1.0405,1922.2,1922.0,1.04054]
[1742091871582,1.04056,1922.0,1921.8,1.04064]
[1742091871782,1.3908,1921.9,1921.8,1.04067]
[1742091872179,2.43141,1921.9,1921.7,1.0484984]
[1742091872579,2.43147,1921.8,1921.7,0.0078184]
[1742091872891,2.43147,1921.8,1921.5,3.9229]
[1742091872892,1.04081,1921.6,1921.4,1.04087]
[1742091873088,0.6818,1921.5,1921.4,1.04087]
[1742091873281,2.0726,1921.5,1921.4,1.04087]
[1742091873788,3.11343,1921.5,1921.3,2.44351]
[1742091874092,2.43173,1921.4,1921.3,0.00521229]
[1742091874383,1.04097,1921.3,1921.0,2.37206]
[1742091874589,2.0782,1921.2,1921.0,2.37206]
[1742091874786,1.3945,1921.1,1921.0,2.37206]
[1742091880190,3.2078,1921.4,1921.3,1.04094]
[1742091881089,0.0078184,1921.6,1921.5,1.04083]
[1742091882496,0.0078184,1921.6,1921.5,1.72653]
[1742091884794,1.3918184,1921.6,1921.5,1.72653]
[1742091885191,1.3918184,1921.6,1921.4,2.35056]
[1742091885192,2.4326184,1921.6,1921.4,2.35056]
[1742091885392,5.6404184,1921.6,1921.4,2.35056]
[1742091885596,2.42483,1921.5,1921.4,1.3097]
[1742091886193,2.42483,1921.5,1921.3,1.73311]
[1742091886396,1.3829,1921.4,1921.3,3.04371]
[1742091887395,4.2564384,1921.6,1921.5,1.04083]
[1742091887396,3.2156184,1921.6,1921.5,1.04083]
[1742091887802,0.0078184,1921.6,1921.5,1.04083]
[1742091891400,1.0485884,1921.6,1921.4,2.35143]
[1742091891701,1.0485884,1921.6,1921.4,1.3106]
[1742091891702,1.04083,1921.5,1921.4,1.3106]
[1742091892003,1.04083,1921.5,1921.4,2.35148]
[1742091892198,3.04883,1921.5,1921.4,2.35148]
[1742091892999,3.04883,1921.5,1921.4,1.3106]
[1742091893301,3.04883,1921.5,1921.4,1.04088]
[1742091893499,1.04094,1921.3,1921.1,1.041]
[1742091893695,1.3433,1921.2,1921.1,1.041]
[1742091893896,2.38429,1921.2,1921.1,1.041]
[1742091894096,1.3433,1921.2,1921.1,1.041]
[1742091894305,2.38429,1921.2,1921.1,1.041]
[1742091894507,3.08569,1921.2,1921.0,3.75557]
[1742091894805,1.3433,1921.1,1921.0,2.42347]
[1742091895404,1.3433,1921.1,1921.0,3.09837]
[1742091897198,2.38434,1921.1,1921.0,1.3824]
[1742091897609,2.38434,1921.1,1921.0,2.4235]
[1742091897911,1.3433,1921.1,1921.0,2.4235]
[1742091900704,2.38434,1921.1,1921.0,2.4235]
[1742091901107,1.3433,1921.1,1921.0,2.4235]
[1742091904315,3.2078,1921.2,1921.1,1.04104]
[1742091904516,4.6337,1921.2,1921.1,3.87634]
[1742091907720,5.67469,1921.2,1921.1,1.3952]
[1742091908314,5.67469,1921.2,1921.1,2.43624]
[1742091908520,5.67469,1921.2,1921.1,1.04104]
[1742091909422,4.6337,1921.2,1921.1,1.04104]
[1742091911320,3.2078,1921.2,1921.1,1.04104]
[1742091913123,4.5627,1921.2,1921.1,1.04104]
[1742091914421,3.2078,1921.2,1921.1,1.04104]
[1742091914928,1.06225966,1921.5,1921.4,1.04088]
[1742091915623,1.4365,1921.5,1921.4,2.43968]
[1742091916428,0.0078184,1921.6,1921.5,1.04083]
[1742091916627,0.0078184,1921.6,1921.5,3.15053]
[1742091917324,1.7348884,1921.6,1921.5,1.3988]
[1742091917525,3.0988884,1921.6,1921.5,1.3988]
[1742091917726,2.0581184,1921.6,1921.5,2.43963]
[1742091918530,2.0581184,1921.6,1921.3,4.592]
[1742091918833,2.0418,1921.5,1921.4,2.35358]
[1742091919126,1.0409,1921.4,1921.2,1.04096]
[1742091919328,4.5718,1921.4,1921.1,1.3127]
[1742091919628,1.72724,1921.3,1921.2,1.04099]
[1742091919826,2.0503,1921.3,1921.2,1.04099]
[1742091920026,2.0503,1921.3,1921.1,1.04102]
[1742091920226,2.37419,1921.2,1921.0,2.49077]
[1742091920426,2.0171,1921.1,1921.0,2.49077]
[1742091921023,1.04113,1921.0,1920.8,1.4259]
[1742091921322,1.04113,1921.0,1920.6,2.60329]
[1742091921323,4.541,1921.0,1920.5,3.412]
[1742091921534,1.04121,1920.8,1920.7,1.04125]
[1742091921732,1.04121,1920.8,1920.6,2.49098]
[1742091921929,1.3332,1920.7,1920.6,2.49098]
[1742091922235,2.0171,1920.7,1920.6,2.49098]
[1742091924630,3.05836,1920.7,1920.6,1.4497]
[1742091924835,1.04139,1920.5,1920.3,1.04146]
[1742091925223,1.4454,1920.4,1920.3,1.04146]
[1742091926035,0.0078184,1920.6,1920.5,1.04137]
[1742091926238,1.3603184,1920.6,1920.5,1.04137]
[1742091927334,0.0078184,1920.6,1920.5,1.04137]
[1742091927637,0.0078184,1920.6,1920.5,5.81407]
[1742091929436,8.42791,1921.7,1920.6,2.60326]
[1742091929642,2.4349,1921.4,1921.1,1.041]
[1742091929840,1.3482,1921.2,1921.1,1.041]
[1742091930139,0.7092,1921.4,1921.3,1.04094]
[1742091930328,1.3482,1921.4,1921.3,1.04094]
[1742091934036,0.0078184,1921.5,1921.4,1.04088]
[1742091934540,1.4527184,1921.5,1921.2,0.0078184]
[1742091934736,0.666,1921.4,1921.2,1.0487984]
[1742091935039,0.0078184,1921.5,1921.4,1.04088]
[1742091938142,1.71526193,1922.2,1922.1,1.0405]
[1742091938342,1.05966193,1922.2,1922.1,1.0405]
[1742091938827,0.6974,1922.4,1922.3,1.04039]